[Event "Late-Titled-Tuesday-Blitz-October-17-2023"]
[Site "Chess.com"]
[Date "2023.10.17"]
[Round "4"]
[White "VincentKeymer"]
[Black "Bauman_Guy"]
[Result "1-0"]
[WhiteElo "3095"]
[BlackElo "2869"]
[TimeControl "180+1"]
[EndTime "14:39:53 PDT"]
[Termination "VincentKeymer won by resignation"]

1. a3 {[%clk 0:03:00.9]} 1... g6 {[%clk 0:02:57.7]} 2. d4 {[%clk 0:02:59.5]}
2... Bg7 {[%clk 0:02:57.5]} 3. e4 {[%clk 0:02:59]} 3... c5 {[%clk 0:02:57.2]} 4.
d5 {[%clk 0:02:56.8]} 4... d6 {[%clk 0:02:55.5]} 5. Nc3 {[%clk 0:02:53.9]} 5...
Nf6 {[%clk 0:02:54.4]} 6. h3 {[%clk 0:02:51.1]} 6... O-O {[%clk 0:02:54.3]} 7.
Nf3 {[%clk 0:02:51.6]} 7... e6 {[%clk 0:02:53.8]} 8. Bc4 {[%clk 0:02:51.1]} 8...
exd5 {[%clk 0:02:53.3]} 9. Bxd5 {[%clk 0:02:51.2]} 9... Nxd5 {[%clk 0:02:45.6]}
10. Nxd5 {[%clk 0:02:51.2]} 10... Re8 {[%clk 0:02:40.9]} 11. O-O {[%clk
0:02:50]} 11... Nc6 {[%clk 0:02:37.6]} 12. Re1 {[%clk 0:02:41]} 12... h6 {[%clk
0:02:36.6]} 13. c3 {[%clk 0:02:39]} 13... Be6 {[%clk 0:02:35.5]} 14. Bf4 {[%clk
0:02:38.8]} 14... Ne5 {[%clk 0:02:35.5]} 15. Nxe5 {[%clk 0:02:30.6]} 15... dxe5
{[%clk 0:02:34.9]} 16. Be3 {[%clk 0:02:30.4]} 16... b6 {[%clk 0:02:34.2]} 17. c4
{[%clk 0:02:27.4]} 17... Rc8 {[%clk 0:02:33.2]} 18. Qc2 {[%clk 0:02:21.4]} 18...
Qh4 {[%clk 0:02:31.3]} 19. f3 {[%clk 0:02:11.4]} 19... f5 {[%clk 0:02:16.9]} 20.
Rad1 {[%clk 0:02:10.9]} 20... Kh7 {[%clk 0:02:07.1]} 21. a4 {[%clk 0:02:00.6]}
21... fxe4 {[%clk 0:01:58.7]} 22. Qxe4 {[%clk 0:01:56.6]} 22... Qg3 {[%clk
0:01:41.5]} 23. Bf2 {[%clk 0:01:53]} 23... Qg5 {[%clk 0:01:41.3]} 24. Bh4 {[%clk
0:01:47.9]} 24... Qf5 {[%clk 0:01:31.1]} 25. Qe2 {[%clk 0:01:36.8]} 25... g5
{[%clk 0:01:25.5]} 26. Bg3 {[%clk 0:01:37.1]} 26... Qg6 {[%clk 0:01:19.8]} 27.
b3 {[%clk 0:01:33.6]} 27... Bf5 {[%clk 0:01:14.9]} 28. Nc3 {[%clk 0:01:28.5]}
28... Rcd8 {[%clk 0:01:11.5]} 29. Rxd8 {[%clk 0:01:21]} 29... Rxd8 {[%clk
0:01:10.9]} 30. Ne4 {[%clk 0:00:53.4]} 30... Rd4 {[%clk 0:00:51.8]} 31. Nf2
{[%clk 0:00:51.2]} 31... Rd7 {[%clk 0:00:49.1]} 32. Qe3 {[%clk 0:00:23.8]} 32...
h5 {[%clk 0:00:41.1]} 33. Bxe5 {[%clk 0:00:19.9]} 33... Re7 {[%clk 0:00:30.7]}
34. f4 {[%clk 0:00:20.3]} 34... gxf4 {[%clk 0:00:25.5]} 35. Qxf4 {[%clk
0:00:21.2]} 35... Qe6 {[%clk 0:00:25.9]} 36. g4 {[%clk 0:00:12.8]} 36... Bxe5
{[%clk 0:00:18.7]} 37. Qxf5+ {[%clk 0:00:13]} 37... Qxf5 {[%clk 0:00:18.8]} 38.
gxf5 {[%clk 0:00:13.9]} 38... Bh2+ {[%clk 0:00:19.5]} 39. Kf1 {[%clk 0:00:14.3]}
39... Rxe1+ {[%clk 0:00:20.4]} 40. Kxe1 {[%clk 0:00:15.2]} 40... Kh6 {[%clk
0:00:09.4]} 41. Ne4 {[%clk 0:00:15.3]} 41... Be5 {[%clk 0:00:09.7]} 42. Ke2
{[%clk 0:00:15.4]} 42... Kg7 {[%clk 0:00:10.3]} 43. Kf3 {[%clk 0:00:15.2]} 43...
Kf7 {[%clk 0:00:10.8]} 44. Ng3 {[%clk 0:00:10.6]} 44... Kf6 {[%clk 0:00:08.2]}
45. Nxh5+ {[%clk 0:00:10.3]} 45... Kxf5 {[%clk 0:00:08.8]} 46. Ng3+ {[%clk
0:00:10.3]} 46... Kg5 {[%clk 0:00:07.5]} 47. Ne4+ {[%clk 0:00:05.5]} 47... Kh4
{[%clk 0:00:07.6]} 48. Kg2 {[%clk 0:00:06.1]} 48... Kh5 {[%clk 0:00:06.7]} 49.
Nd2 {[%clk 0:00:05.7]} 49... Bf6 {[%clk 0:00:04.5]} 50. Nf3 {[%clk 0:00:06.2]}
50... Be7 {[%clk 0:00:02.9]} 51. Kg3 {[%clk 0:00:06.3]} 51... Bd6+ {[%clk
0:00:02.9]} 52. Kf2 {[%clk 0:00:06.9]} 52... Kg6 {[%clk 0:00:03.8]} 53. Ke3
{[%clk 0:00:07.4]} 53... Kf5 {[%clk 0:00:04.4]} 54. Ng1 {[%clk 0:00:05.6]} 54...
Bf4+ {[%clk 0:00:04.4]} 55. Kd3 {[%clk 0:00:05.7]} 55... Bd6 {[%clk 0:00:04.8]}
56. Ne2 {[%clk 0:00:06.3]} 56... Kg5 {[%clk 0:00:04.9]} 57. Nc3 {[%clk
0:00:06.8]} 57... Kh4 {[%clk 0:00:05.3]} 58. Ke4 {[%clk 0:00:06.5]} 58... Kxh3
{[%clk 0:00:05.1]} 59. Kd5 {[%clk 0:00:07.1]} 59... Bf4 {[%clk 0:00:03.5]} 60.
Kc6 {[%clk 0:00:07.3]} 60... Kg4 {[%clk 0:00:03.9]} 61. Nb5 {[%clk 0:00:07.7]}
61... a6 {[%clk 0:00:02]} 62. Nc3 {[%clk 0:00:08.1]} 62... a5 {[%clk 0:00:01.7]}
63. Kxb6 {[%clk 0:00:08.1]} 63... Bd2 {[%clk 0:00:02.6]} 64. Ne4 {[%clk
0:00:08.2]} 64... Bb4 {[%clk 0:00:03.2]} 65. Nxc5 {[%clk 0:00:08.7]} 65... Kf4
{[%clk 0:00:04.1]} 66. Na6 {[%clk 0:00:09.2]} 1-0

[Event "Late-Titled-Tuesday-Blitz-October-17-2023"]
[Site "Chess.com"]
[Date "2023.10.17"]
[Round "4"]
[White "protectiago"]
[Black "Chessbard1972"]
[Result "0-1"]
[WhiteElo "2072"]
[BlackElo "2331"]
[TimeControl "180+1"]
[EndTime "14:39:53 PDT"]
[Termination "Chessbard1972 won on time"]

1. d4 {[%clk 0:03:00]} 1... Nf6 {[%clk 0:02:57]} 2. c4 {[%clk 0:03:00]} 2... g6
{[%clk 0:02:56.7]} 3. Nc3 {[%clk 0:02:59.2]} 3... Bg7 {[%clk 0:02:56.6]} 4. e4
{[%clk 0:02:59.2]} 4... d6 {[%clk 0:02:57.3]} 5. Nf3 {[%clk 0:02:59.5]} 5... O-O
{[%clk 0:02:57.2]} 6. Be2 {[%clk 0:02:59.7]} 6... Na6 {[%clk 0:02:57.3]} 7. O-O
{[%clk 0:02:59.1]} 7... c5 {[%clk 0:02:57.1]} 8. Be3 {[%clk 0:02:50.1]} 8... Ng4
{[%clk 0:02:55.7]} 9. Bg5 {[%clk 0:02:50.3]} 9... h6 {[%clk 0:02:55.4]} 10. Bh4
{[%clk 0:02:50.2]} 10... cxd4 {[%clk 0:02:54.7]} 11. Nxd4 {[%clk 0:02:49.9]}
11... Bxd4 {[%clk 0:02:54.6]} 12. Qxd4 {[%clk 0:02:46.4]} 12... e5 {[%clk
0:02:53.6]} 13. Bxd8 {[%clk 0:01:55.1]} 13... exd4 {[%clk 0:02:49.8]} 14. Bxg4
{[%clk 0:01:50.1]} 14... dxc3 {[%clk 0:02:42.3]} 15. Bxc8 {[%clk 0:01:47.2]}
15... cxb2 {[%clk 0:02:35.9]} 16. Rab1 {[%clk 0:01:43.9]} 16... Rxc8 {[%clk
0:02:31.8]} 17. Be7 {[%clk 0:01:40.8]} 17... Rfe8 {[%clk 0:02:26]} 18. Bxd6
{[%clk 0:01:40.8]} 18... Rxe4 {[%clk 0:02:21.4]} 19. Rxb2 {[%clk 0:01:37.6]}
19... b6 {[%clk 0:02:21.5]} 20. Rd2 {[%clk 0:01:10.3]} 20... Rexc4 {[%clk
0:02:20.1]} 21. g3 {[%clk 0:01:03.5]} 21... Rd8 {[%clk 0:02:18]} 22. Rfd1 {[%clk
0:01:02.4]} 22... Rd7 {[%clk 0:02:12.1]} 23. Kg2 {[%clk 0:00:53.8]} 23... h5
{[%clk 0:02:05.9]} 24. Be5 {[%clk 0:00:44.7]} 24... Rxd2 {[%clk 0:02:01]} 25.
Rxd2 {[%clk 0:00:45.1]} 25... Rc8 {[%clk 0:01:39.3]} 26. Rd7 {[%clk 0:00:44.2]}
26... Ra8 {[%clk 0:01:37.9]} 27. Bd6 {[%clk 0:00:38.7]} 27... Kg7 {[%clk
0:01:31.8]} 28. Be5+ {[%clk 0:00:24.1]} 28... Kf8 {[%clk 0:01:31]} 29. Bd6+
{[%clk 0:00:21.4]} 29... Kg8 {[%clk 0:01:25.1]} 30. Kf3 {[%clk 0:00:20.8]} 30...
Kg7 {[%clk 0:01:15.7]} 31. Be5+ {[%clk 0:00:20.4]} 31... Kf8 {[%clk 0:01:15.3]}
32. Bd6+ {[%clk 0:00:20.3]} 32... Kg8 {[%clk 0:01:15.8]} 33. Kf4 {[%clk
0:00:19.9]} 33... Nc5 {[%clk 0:01:15.1]} 34. Bxc5 {[%clk 0:00:19.5]} 34... bxc5
{[%clk 0:01:15.1]} 35. Rc7 {[%clk 0:00:19.8]} 35... Rb8 {[%clk 0:01:12.7]} 36.
Rxa7 {[%clk 0:00:11.9]} 36... Rb2 {[%clk 0:01:11.4]} 37. f3 {[%clk 0:00:11.9]}
37... Rxh2 {[%clk 0:01:10.1]} 38. a4 {[%clk 0:00:11.4]} 38... Ra2 {[%clk
0:01:05.5]} 39. a5 {[%clk 0:00:11.5]} 39... Kg7 {[%clk 0:01:05.6]} 40. Ke4
{[%clk 0:00:09.3]} 40... Ra3 {[%clk 0:01:03.1]} 41. a6 {[%clk 0:00:08.7]} 41...
Kf6 {[%clk 0:01:02.4]} 42. g4 {[%clk 0:00:08]} 42... h4 {[%clk 0:01:01.9]} 43.
Ra8 {[%clk 0:00:06.5]} 43... h3 {[%clk 0:00:57.3]} 44. a7 {[%clk 0:00:06.5]}
44... h2 {[%clk 0:00:56.4]} 45. Rh8 {[%clk 0:00:06.6]} 45... Rxa7 {[%clk
0:00:55.6]} 46. Rxh2 {[%clk 0:00:06.2]} 46... Ke6 {[%clk 0:00:55.9]} 47. Rd2
{[%clk 0:00:04.7]} 47... Ra4+ {[%clk 0:00:55.8]} 48. Ke3 {[%clk 0:00:04.6]}
48... g5 {[%clk 0:00:54]} 49. Rd3 {[%clk 0:00:04.1]} 49... f6 {[%clk 0:00:53.3]}
50. Rd2 {[%clk 0:00:03.6]} 50... Ke5 {[%clk 0:00:53.7]} 51. Rd8 {[%clk
0:00:03.5]} 51... Ra3+ {[%clk 0:00:53.5]} 52. Ke2 {[%clk 0:00:03.6]} 52... c4
{[%clk 0:00:50.8]} 53. Rd7 {[%clk 0:00:02.2]} 53... Kf4 {[%clk 0:00:44.6]} 54.
Rd4+ {[%clk 0:00:02.6]} 54... Kg3 {[%clk 0:00:41.4]} 55. Rxc4 {[%clk 0:00:03.1]}
55... Rxf3 {[%clk 0:00:41.1]} 56. Rc6 {[%clk 0:00:03.5]} 56... Kxg4 {[%clk
0:00:38.3]} 57. Rc4+ {[%clk 0:00:03.8]} 57... Rf4 {[%clk 0:00:38.5]} 58. Rc3
{[%clk 0:00:04.1]} 58... f5 {[%clk 0:00:37.8]} 59. Rc1 {[%clk 0:00:03.5]} 59...
Re4+ {[%clk 0:00:37.2]} 60. Kf2 {[%clk 0:00:03.8]} 60... f4 {[%clk 0:00:36.3]}
61. Rg1+ {[%clk 0:00:03.5]} 61... Kf5 {[%clk 0:00:36.7]} 62. Ra1 {[%clk
0:00:02.8]} 62... Rb4 {[%clk 0:00:36.2]} 63. Ra5+ {[%clk 0:00:02.5]} 63... Kg4
{[%clk 0:00:36.1]} 64. Kg2 {[%clk 0:00:02.9]} 64... Rb2+ {[%clk 0:00:36.1]} 65.
Kf1 {[%clk 0:00:03.1]} 65... f3 {[%clk 0:00:32.5]} 66. Ra4+ {[%clk 0:00:03.1]}
66... Kg3 {[%clk 0:00:32.5]} 67. Ra1 {[%clk 0:00:02.2]} 67... Rh2 {[%clk
0:00:30.2]} 68. Kg1 {[%clk 0:00:01.9]} 68... f2+ {[%clk 0:00:29.6]} 0-1

[Event "Late-Titled-Tuesday-Blitz-October-17-2023"]
[Site "Chess.com"]
[Date "2023.10.17"]
[Round "4"]
[White "Russian_berezka"]
[Black "Sanan_Sjugirov"]
[Result "0-1"]
[WhiteElo "2698"]
[BlackElo "2953"]
[TimeControl "180+1"]
[EndTime "14:39:59 PDT"]
[Termination "Sanan_Sjugirov won on time"]

1. d4 {[%clk 0:03:00.9]} 1... Nf6 {[%clk 0:03:00]} 2. Bf4 {[%clk 0:03:01]} 2...
b6 {[%clk 0:02:59.4]} 3. e3 {[%clk 0:03:00.8]} 3... Bb7 {[%clk 0:03:00]} 4. Nf3
{[%clk 0:03:01.3]} 4... g6 {[%clk 0:03:00.6]} 5. h3 {[%clk 0:02:59.8]} 5... Bg7
{[%clk 0:03:01.2]} 6. Be2 {[%clk 0:03:00.3]} 6... O-O {[%clk 0:03:01.8]} 7. O-O
{[%clk 0:03:00.6]} 7... d6 {[%clk 0:03:02.6]} 8. c3 {[%clk 0:02:59]} 8... Nbd7
{[%clk 0:03:03.2]} 9. Nbd2 {[%clk 0:02:55.7]} 9... e6 {[%clk 0:03:03.2]} 10. Bh2
{[%clk 0:02:54.1]} 10... Qe7 {[%clk 0:03:03.6]} 11. Bd3 {[%clk 0:02:54.5]} 11...
e5 {[%clk 0:03:03.3]} 12. dxe5 {[%clk 0:02:32.5]} 12... dxe5 {[%clk 0:03:03.1]}
13. Bc2 {[%clk 0:02:04.7]} 13... Rad8 {[%clk 0:03:00.8]} 14. Qe2 {[%clk
0:02:01.6]} 14... e4 {[%clk 0:02:52.9]} 15. Nd4 {[%clk 0:01:58.7]} 15... Nc5
{[%clk 0:02:53.5]} 16. b4 {[%clk 0:01:51]} 16... Nd3 {[%clk 0:02:52]} 17. Nxe4
{[%clk 0:01:35.8]} 17... Nxe4 {[%clk 0:02:34.2]} 18. Bxd3 {[%clk 0:01:32.9]}
18... Nxc3 {[%clk 0:02:32]} 19. Qc2 {[%clk 0:01:24.8]} 19... Nd5 {[%clk
0:02:29.4]} 20. a3 {[%clk 0:01:24.8]} 20... c5 {[%clk 0:02:28.5]} 21. bxc5
{[%clk 0:01:10.5]} 21... bxc5 {[%clk 0:02:19.3]} 22. Nb5 {[%clk 0:01:09.2]}
22... Nxe3 {[%clk 0:02:13.9]} 23. Rae1 {[%clk 0:00:58.3]} 23... Qg5 {[%clk
0:01:08.4]} 24. fxe3 {[%clk 0:00:58.1]} 24... Rxd3 {[%clk 0:01:08.3]} 25. Bf4
{[%clk 0:00:56.6]} 25... Qd5 {[%clk 0:01:08.3]} 26. e4 {[%clk 0:00:32.5]} 26...
Qb3 {[%clk 0:01:07.7]} 27. Qxb3 {[%clk 0:00:31]} 27... Rxb3 {[%clk 0:01:08.6]}
28. Nd6 {[%clk 0:00:30.8]} 28... Ba6 {[%clk 0:01:03.8]} 29. Rf3 {[%clk
0:00:29.8]} 29... Bd4+ {[%clk 0:00:59.5]} 30. Kh1 {[%clk 0:00:25.5]} 30... Rxf3
{[%clk 0:00:58.6]} 31. gxf3 {[%clk 0:00:26.4]} 31... Rb8 {[%clk 0:00:32.8]} 32.
Nxf7 {[%clk 0:00:24.1]} 32... Rf8 {[%clk 0:00:28.8]} 33. Nh6+ {[%clk 0:00:21.7]}
33... Kg7 {[%clk 0:00:29.1]} 34. Bg5 {[%clk 0:00:13.6]} 34... Rxf3 {[%clk
0:00:28.7]} 35. Ng4 {[%clk 0:00:13.9]} 35... h5 {[%clk 0:00:16.9]} 36. Nh2
{[%clk 0:00:09.1]} 36... Rxh3 {[%clk 0:00:16]} 37. Kg2 {[%clk 0:00:09.5]} 37...
Rxa3 {[%clk 0:00:16.5]} 38. Nf3 {[%clk 0:00:09.4]} 38... Bb7 {[%clk 0:00:07.9]}
39. Nxd4 {[%clk 0:00:08.3]} 39... cxd4 {[%clk 0:00:08.8]} 40. Kf2 {[%clk
0:00:09.2]} 40... Ra2+ {[%clk 0:00:06.8]} 41. Kg3 {[%clk 0:00:09.3]} 41... Ra5
{[%clk 0:00:05.8]} 42. e5 {[%clk 0:00:08.9]} 42... Ra3+ {[%clk 0:00:05.6]} 43.
Kh2 {[%clk 0:00:07.4]} 43... Ra5 {[%clk 0:00:03]} 44. Rb1 {[%clk 0:00:05.6]}
44... Be4 {[%clk 0:00:02.4]} 45. Bf6+ {[%clk 0:00:06]} 45... Kf7 {[%clk
0:00:02.6]} 46. Rb8 {[%clk 0:00:06.9]} 46... d3 {[%clk 0:00:02.7]} 47. Rd8
{[%clk 0:00:06.6]} 47... Ke6 {[%clk 0:00:03.1]} 48. Rd6+ {[%clk 0:00:06.1]}
48... Kf5 {[%clk 0:00:03.7]} 49. Kg3 {[%clk 0:00:06.2]} 49... g5 {[%clk
0:00:03.1]} 50. Kf2 {[%clk 0:00:04.3]} 50... Ra2+ {[%clk 0:00:03]} 51. Ke3
{[%clk 0:00:02.7]} 51... Re2+ {[%clk 0:00:03.2]} 52. Kd4 {[%clk 0:00:03.4]}
52... d2 {[%clk 0:00:03.9]} 53. Kc3 {[%clk 0:00:04.1]} 53... h4 {[%clk
0:00:03.1]} 54. Rxd2 {[%clk 0:00:04.6]} 54... Rxd2 {[%clk 0:00:03.4]} 55. Kxd2
{[%clk 0:00:05.5]} 55... h3 {[%clk 0:00:03.9]} 56. e6 {[%clk 0:00:02]} 56...
Kxe6 {[%clk 0:00:03.9]} 57. Bxg5 {[%clk 0:00:01.2]} 57... h2 {[%clk 0:00:04.3]}
58. Be3 {[%clk 0:00:02.1]} 58... h1=Q {[%clk 0:00:04.9]} 59. Bd4 {[%clk
0:00:02.8]} 59... Qf3 {[%clk 0:00:04.9]} 60. Be3 {[%clk 0:00:02.6]} 60... Qg2+
{[%clk 0:00:05.2]} 61. Kc3 {[%clk 0:00:03.1]} 61... Qc2+ {[%clk 0:00:06.1]} 62.
Kb4 {[%clk 0:00:03.3]} 62... Bd5 {[%clk 0:00:06]} 63. Bd4 {[%clk 0:00:01.3]}
63... Qc4+ {[%clk 0:00:06.1]} 0-1

[Event "Late-Titled-Tuesday-Blitz-October-17-2023"]
[Site "Chess.com"]
[Date "2023.10.17"]
[Round "4"]
[White "PushingpawnsNYC"]
[Black "Chessdreamer2020"]
[Result "1-0"]
[WhiteElo "2336"]
[BlackElo "2483"]
[TimeControl "180+1"]
[EndTime "14:40:00 PDT"]
[Termination "PushingpawnsNYC won on time"]

1. e4 {[%clk 0:03:00.9]} 1... d6 {[%clk 0:02:16.7]} 2. d4 {[%clk 0:03:00.1]}
2... Nf6 {[%clk 0:02:16.2]} 3. Nc3 {[%clk 0:03:00.3]} 3... c6 {[%clk 0:02:16.2]}
4. a4 {[%clk 0:02:59.1]} 4... e5 {[%clk 0:02:16.1]} 5. a5 {[%clk 0:02:57.2]}
5... Nbd7 {[%clk 0:02:13.4]} 6. Nf3 {[%clk 0:02:56.2]} 6... Be7 {[%clk
0:02:13.6]} 7. g3 {[%clk 0:02:53]} 7... O-O {[%clk 0:02:12.9]} 8. Bg2 {[%clk
0:02:53.2]} 8... Qc7 {[%clk 0:02:13]} 9. O-O {[%clk 0:02:53.4]} 9... Re8 {[%clk
0:02:13.4]} 10. Re1 {[%clk 0:02:53]} 10... Nf8 {[%clk 0:02:13.3]} 11. h3 {[%clk
0:02:52]} 11... Ng6 {[%clk 0:02:13.4]} 12. Bg5 {[%clk 0:02:48.8]} 12... h6
{[%clk 0:02:11.8]} 13. Be3 {[%clk 0:02:45.2]} 13... Bf8 {[%clk 0:02:10.9]} 14.
Qd2 {[%clk 0:02:44.9]} 14... Bd7 {[%clk 0:02:08.1]} 15. Nh2 {[%clk 0:02:32.1]}
15... exd4 {[%clk 0:02:03.7]} 16. Bxd4 {[%clk 0:02:31.2]} 16... Qd8 {[%clk
0:01:55.5]} 17. f4 {[%clk 0:02:28.9]} 17... c5 {[%clk 0:01:54.1]} 18. Bf2 {[%clk
0:02:28.5]} 18... Bc6 {[%clk 0:01:54.6]} 19. Ng4 {[%clk 0:02:16.1]} 19... Nxg4
{[%clk 0:01:53.8]} 20. hxg4 {[%clk 0:02:17]} 20... Qc7 {[%clk 0:01:50.2]} 21.
Nd5 {[%clk 0:02:11]} 21... Bxd5 {[%clk 0:01:43.4]} 22. exd5 {[%clk 0:02:11.9]}
22... Rxe1+ {[%clk 0:01:42.3]} 23. Rxe1 {[%clk 0:02:10.8]} 23... Qd7 {[%clk
0:01:36.8]} 24. Bf3 {[%clk 0:02:07.4]} 24... Re8 {[%clk 0:01:36.5]} 25. Rxe8
{[%clk 0:02:04.3]} 25... Qxe8 {[%clk 0:01:37.4]} 26. Qd3 {[%clk 0:02:01.1]}
26... Qa4 {[%clk 0:01:35.9]} 27. Be4 {[%clk 0:01:52.9]} 27... Ne7 {[%clk
0:01:26.1]} 28. Be1 {[%clk 0:01:29.9]} 28... Qa1 {[%clk 0:01:25.7]} 29. Qc3
{[%clk 0:01:28]} 29... Qd1 {[%clk 0:01:19.9]} 30. Bf3 {[%clk 0:01:23.3]} 30...
Qc1 {[%clk 0:01:11.1]} 31. Kf2 {[%clk 0:01:17.6]} 31... Ng6 {[%clk 0:01:03.7]}
32. Bd2 {[%clk 0:01:14]} 32... Qb1 {[%clk 0:00:56.5]} 33. b3 {[%clk 0:01:11.5]}
33... Be7 {[%clk 0:00:54.7]} 34. Be4 {[%clk 0:01:02.7]} 34... Bf6 {[%clk
0:00:54.8]} 35. Qd3 {[%clk 0:01:01.8]} 35... Ne7 {[%clk 0:00:43.9]} 36. Qb5
{[%clk 0:01:01.2]} 36... Bd4+ {[%clk 0:00:41.3]} 37. Ke2 {[%clk 0:00:57]} 37...
Ng6 {[%clk 0:00:32.2]} 38. Qe8+ {[%clk 0:00:41.9]} 38... Nf8 {[%clk 0:00:18.6]}
39. c3 {[%clk 0:00:41.5]} 39... Qxb3 {[%clk 0:00:10.6]} 40. cxd4 {[%clk
0:00:41.4]} 40... cxd4 {[%clk 0:00:11.5]} 41. g5 {[%clk 0:00:37.7]} 41... hxg5
{[%clk 0:00:10.4]} 42. fxg5 {[%clk 0:00:37.8]} 42... Qxg3 {[%clk 0:00:10.8]} 43.
Bd3 {[%clk 0:00:28.4]} 43... Qg2+ {[%clk 0:00:10.1]} 44. Kd1 {[%clk 0:00:28]}
44... Qxd5 {[%clk 0:00:09.4]} 45. Qe4 {[%clk 0:00:17.9]} 45... Qb3+ {[%clk
0:00:09.4]} 46. Bc2 {[%clk 0:00:17.6]} 46... Qc4 {[%clk 0:00:08.6]} 47. Qxb7
{[%clk 0:00:16.4]} 47... Qf1+ {[%clk 0:00:07.8]} 48. Be1 {[%clk 0:00:16.7]}
48... d3 {[%clk 0:00:08.2]} 49. Bxd3 {[%clk 0:00:11.5]} 49... Qxd3+ {[%clk
0:00:08.2]} 50. Bd2 {[%clk 0:00:12.4]} 50... Qf1+ {[%clk 0:00:07.7]} 51. Kc2
{[%clk 0:00:12.7]} 51... Qc4+ {[%clk 0:00:07.8]} 52. Kd1 {[%clk 0:00:13.1]}
52... Qa4+ {[%clk 0:00:07.7]} 53. Kc1 {[%clk 0:00:11.6]} 53... Qc4+ {[%clk
0:00:07.8]} 54. Kd1 {[%clk 0:00:11.7]} 54... Qd4 {[%clk 0:00:07.6]} 55. Qc8
{[%clk 0:00:08.5]} 55... g6 {[%clk 0:00:04.8]} 56. a6 {[%clk 0:00:07.2]} 56...
Kg7 {[%clk 0:00:04]} 57. Kc2 {[%clk 0:00:06.2]} 57... Qa4+ {[%clk 0:00:02.2]}
58. Kc1 {[%clk 0:00:06]} 58... Qa3+ {[%clk 0:00:01.9]} 59. Kc2 {[%clk
0:00:05.5]} 59... Qa4+ {[%clk 0:00:02.4]} 60. Kb2 {[%clk 0:00:05]} 60... Qb5+
{[%clk 0:00:01.7]} 61. Kc2 {[%clk 0:00:04.5]} 1-0

[Event "Late-Titled-Tuesday-Blitz-October-17-2023"]
[Site "Chess.com"]
[Date "2023.10.17"]
[Round "4"]
[White "Rodalquilar"]
[Black "aNaartjieZA"]
[Result "0-1"]
[WhiteElo "2767"]
[BlackElo "2536"]
[TimeControl "180+1"]
[EndTime "14:40:25 PDT"]
[Termination "aNaartjieZA won on time"]

1. d4 {[%clk 0:03:00.9]} 1... Nf6 {[%clk 0:02:59.9]} 2. Nf3 {[%clk 0:03:01.1]}
2... c5 {[%clk 0:02:59.7]} 3. c3 {[%clk 0:03:01.1]} 3... b6 {[%clk 0:02:58.8]}
4. Bf4 {[%clk 0:03:00.8]} 4... d6 {[%clk 0:02:58.3]} 5. h3 {[%clk 0:02:58.3]}
5... g6 {[%clk 0:02:58.6]} 6. e3 {[%clk 0:02:58.6]} 6... Bg7 {[%clk 0:02:58.9]}
7. Nbd2 {[%clk 0:02:59]} 7... O-O {[%clk 0:02:59]} 8. Be2 {[%clk 0:02:59.3]}
8... Bb7 {[%clk 0:02:58.9]} 9. O-O {[%clk 0:02:59.5]} 9... Nbd7 {[%clk
0:02:59.2]} 10. Bh2 {[%clk 0:02:59.8]} 10... a6 {[%clk 0:02:59.2]} 11. a4 {[%clk
0:03:00.1]} 11... Rc8 {[%clk 0:02:59.2]} 12. Bd3 {[%clk 0:02:59.7]} 12... d5
{[%clk 0:02:33.3]} 13. Qe2 {[%clk 0:02:55.3]} 13... c4 {[%clk 0:02:29.3]} 14.
Bc2 {[%clk 0:02:55.5]} 14... b5 {[%clk 0:02:29.7]} 15. axb5 {[%clk 0:02:55.4]}
15... axb5 {[%clk 0:02:30]} 16. e4 {[%clk 0:02:55.9]} 16... dxe4 {[%clk
0:02:29.9]} 17. Nxe4 {[%clk 0:02:56.2]} 17... Qb6 {[%clk 0:02:24]} 18. Ned2
{[%clk 0:02:00.2]} 18... Nd5 {[%clk 0:02:10.8]} 19. Ne5 {[%clk 0:01:36.8]} 19...
Nxe5 {[%clk 0:01:47.6]} 20. Bxe5 {[%clk 0:01:37.7]} 20... Bxe5 {[%clk
0:01:47.4]} 21. Qxe5 {[%clk 0:01:38.6]} 21... f6 {[%clk 0:01:47.6]} 22. Qg3
{[%clk 0:01:36.2]} 22... b4 {[%clk 0:01:40.3]} 23. Bxg6 {[%clk 0:01:08.5]} 23...
hxg6 {[%clk 0:01:39.1]} 24. Qxg6+ {[%clk 0:01:09.4]} 24... Kh8 {[%clk
0:01:39.4]} 25. Rfe1 {[%clk 0:01:09.7]} 25... f5 {[%clk 0:01:25]} 26. Re6 {[%clk
0:01:07.9]} 26... Rc6 {[%clk 0:01:25.1]} 27. Rae1 {[%clk 0:00:32.5]} 27... Nf4
{[%clk 0:00:50.2]} 28. Qh6+ {[%clk 0:00:30.7]} 28... Kg8 {[%clk 0:00:50.4]} 29.
d5 {[%clk 0:00:19.9]} 29... Rxe6 {[%clk 0:00:18.5]} 30. dxe6 {[%clk 0:00:17.5]}
30... Rf6 {[%clk 0:00:18.7]} 31. Qxf4 {[%clk 0:00:16.5]} 31... Rxe6 {[%clk
0:00:18.9]} 32. Rxe6 {[%clk 0:00:15.1]} 32... Qxe6 {[%clk 0:00:18.4]} 33. Qxc4
{[%clk 0:00:15.1]} 33... Bd5 {[%clk 0:00:17.4]} 34. Qxb4 {[%clk 0:00:12.6]}
34... Qe1+ {[%clk 0:00:17.5]} 35. Nf1 {[%clk 0:00:13]} 35... Be4 {[%clk
0:00:17.2]} 36. Qd4 {[%clk 0:00:11.5]} 36... Kf7 {[%clk 0:00:16.2]} 37. Qd2
{[%clk 0:00:10.3]} 37... Qb1 {[%clk 0:00:15.9]} 38. f3 {[%clk 0:00:08.7]} 38...
Bd3 {[%clk 0:00:16.2]} 39. Qf2 {[%clk 0:00:09.2]} 39... Bxf1 {[%clk 0:00:16.4]}
40. Qxf1 {[%clk 0:00:09]} 40... Qxb2 {[%clk 0:00:17]} 41. Qe1 {[%clk 0:00:08]}
41... Qc2 {[%clk 0:00:16.6]} 42. Qe5 {[%clk 0:00:07.3]} 42... Qd3 {[%clk
0:00:16.5]} 43. Kh2 {[%clk 0:00:07.5]} 43... e6 {[%clk 0:00:16.6]} 44. h4 {[%clk
0:00:07.5]} 44... Qd2 {[%clk 0:00:14]} 45. c4 {[%clk 0:00:04.8]} 45... Qh6
{[%clk 0:00:08.8]} 46. Kh3 {[%clk 0:00:04.8]} 46... Qc1 {[%clk 0:00:08.5]} 47.
c5 {[%clk 0:00:05.4]} 47... Qh1+ {[%clk 0:00:08.7]} 48. Kg3 {[%clk 0:00:05.9]}
48... Qc1 {[%clk 0:00:09.2]} 49. Qd6 {[%clk 0:00:05.4]} 49... Qe1+ {[%clk
0:00:07.4]} 50. Kh3 {[%clk 0:00:05.8]} 50... Qh1+ {[%clk 0:00:07.6]} 51. Qh2
{[%clk 0:00:06.1]} 51... Qc1 {[%clk 0:00:07.1]} 52. Qc7+ {[%clk 0:00:06.5]}
52... Kg6 {[%clk 0:00:07.3]} 53. c6 {[%clk 0:00:06.8]} 53... Qh1+ {[%clk
0:00:07.1]} 54. Qh2 {[%clk 0:00:07]} 54... Qc1 {[%clk 0:00:07.6]} 55. Qg3+
{[%clk 0:00:07.4]} 55... Kf6 {[%clk 0:00:07.3]} 56. c7 {[%clk 0:00:07.8]} 56...
Qh1+ {[%clk 0:00:06.8]} 57. Qh2 {[%clk 0:00:08.2]} 57... Qc1 {[%clk 0:00:07.4]}
58. h5 {[%clk 0:00:06.4]} 58... Kg5 {[%clk 0:00:07.1]} 59. Qg3+ {[%clk
0:00:05.2]} 59... Kxh5 {[%clk 0:00:07.5]} 60. Qh4+ {[%clk 0:00:03.1]} 60... Kg6
{[%clk 0:00:07.7]} 61. Qg3+ {[%clk 0:00:03.5]} 61... Kf7 {[%clk 0:00:08.1]} 62.
Kh2 {[%clk 0:00:04.1]} 62... Qh6+ {[%clk 0:00:07.7]} 63. Kg1 {[%clk 0:00:04]}
63... Qc1+ {[%clk 0:00:07.7]} 64. Kf2 {[%clk 0:00:04.4]} 64... Qc5+ {[%clk
0:00:07.9]} 65. Ke2 {[%clk 0:00:03.6]} 65... Qc2+ {[%clk 0:00:07.9]} 66. Ke3
{[%clk 0:00:04]} 66... Qc1+ {[%clk 0:00:07.8]} 67. Kf2 {[%clk 0:00:04.3]} 67...
Qc5+ {[%clk 0:00:07.7]} 68. Kf1 {[%clk 0:00:04.5]} 68... Qc1+ {[%clk 0:00:07.4]}
69. Ke2 {[%clk 0:00:05.2]} 69... Qc4+ {[%clk 0:00:07.5]} 70. Ke3 {[%clk
0:00:05.7]} 70... Qc3+ {[%clk 0:00:07.6]} 71. Kf4 {[%clk 0:00:04.9]} 71... Qxc7+
{[%clk 0:00:07.5]} 72. Kg5 {[%clk 0:00:03]} 72... Qxg3+ {[%clk 0:00:07.7]} 0-1